bitfinex-derivatives/quotes_SOLF0:USTF0_20240818
["timestamp","ask_amount","ask_price","bid_price","bid_amount"]
[1723989923768,18.57362377,145.03,144.99,0.04967955]
[1723989924275,3.4474,145.01,144.99,0.04967955]
[1723989924476,0.04362377,145.03,144.99,0.04967955]
[1723989925773,3.447,145.02,144.99,3.49717955]
[1723989926475,0.04362377,145.03,144.99,3.49717955]
[1723989926476,4.70362377,145.03,144.99,18.57967955]
[1723989926673,0.04362377,145.03,144.99,18.57967955]
[1723989927183,0.04362377,145.03,145.01,3.447]
[1723989929470,0.04362377,145.03,145.02,3.4469]
[1723989930378,0.04362377,145.03,145.01,21.9771]
[1723989930769,0.04362377,145.03,145.01,18.53]
[1723989930973,0.04362377,145.03,145.02,3.4469]
[1723989931174,0.04362377,145.03,145.01,18.53]
[1723989931377,0.04362377,145.03,144.99,18.57967955]
[1723989931974,0.04362377,145.03,145.0,3.4474]
[1723989932474,0.04362377,145.03,144.99,18.57967955]
[1723989932775,0.04362377,145.03,145.01,3.4471]
[1723989936277,0.04362377,145.03,145.0,3.4473]
[1723989936479,0.04362377,145.03,145.01,7.41]
[1723989938876,3.4469,145.02,145.01,7.41]
[1723989939082,0.04362377,145.03,145.0,7.41]
[1723989939377,0.04362377,145.03,144.99,0.04967955]
[1723989939971,3.4473,145.01,144.99,0.04967955]
[1723989941773,3.4474,145.0,144.99,0.04967955]
[1723989941979,21.93745349,145.0,144.93,1.3547]
[1723989942173,21.93745349,145.0,144.9,3.45411066]
[1723989942384,3.4487,144.95,144.89,18.53]
[1723989942584,4.66,144.95,144.89,18.53]
[1723989942779,4.66,144.95,144.88,1.2629]
[1723989942984,3.4492,144.93,144.89,3.4499]
[1723989943183,3.49670065,144.93,144.9,0.05091949]
[1723989944774,0.04750065,144.93,144.9,3.50061949]
[1723989944983,4.70750065,144.93,144.9,3.50061949]
[1723989945375,8.15660065,144.93,144.9,0.05091949]
[1723989945782,0.04750065,144.93,144.9,0.05091949]
[1723989945977,4.70750065,144.93,144.9,3.50071949]
[1723989946183,4.70750065,144.93,144.9,0.05091949]
[1723989947380,0.04750065,144.93,144.9,0.05091949]
[1723989947587,4.66,144.94,144.91,18.53]
[1723989947783,18.53,145.0,144.91,18.53]
[1723989947784,4.66,144.95,144.91,18.53]
[1723989947984,8.1087,144.95,144.91,21.9795]
[1723989948381,3.4487,144.95,144.91,21.9795]
[1723989948582,0.05034448,144.94,144.92,0.04946289]
[1723989949486,3.49924448,144.94,144.92,0.04946289]
[1723989950891,3.4491,144.93,144.92,0.04946289]
[1723989952590,0.05034448,144.94,144.92,0.04946289]
[1723989953183,3.49934448,144.94,144.92,0.04946289]
[1723989953889,3.4491,144.93,144.92,0.04946289]
[1723989955991,4.66,144.93,144.92,0.04946289]
[1723989956890,8.1091,144.93,144.92,0.04946289]
[1723989958094,8.1091,144.93,144.87,2.7229]
[1723989958095,4.66,144.93,144.87,2.7229]
[1723989958389,4.66,144.93,144.87,6.1732]
[1723989958993,3.4497,144.91,144.88,3.4502]
[1723989959295,3.4998583,144.91,144.88,3.50261768]
[1723989961695,0.0501583,144.91,144.89,3.4499]
[1723989962400,0.0501583,144.91,144.9,3.4498]
[1723989963096,0.0501583,144.91,144.89,3.4499]
[1723989964091,0.0501583,144.91,144.89,3.45]
[1723989964997,0.0501583,144.91,144.88,22.03261768]
[1723989966294,0.0501583,144.91,144.89,3.45]
[1723989966494,0.0501583,144.91,144.89,10.87]
[1723989966697,0.0501583,144.91,144.88,0.05241768]
[1723989967294,3.4998583,144.91,144.88,0.05241768]
[1723989967587,0.0501583,144.91,144.88,0.05241768]
[1723989967789,0.0501583,144.91,144.89,7.42]
[1723989968394,0.0501583,144.91,144.88,0.05241768]
[1723989970097,3.4997583,144.91,144.88,7.47241768]
[1723989972205,3.4498,144.9,144.88,0.05241768]
[1723989973308,3.4998583,144.91,144.88,0.05241768]
[1723989974205,3.4498,144.9,144.88,0.05241768]
[1723989977219,3.45,144.89,144.88,0.05241768]
[1723989977513,7.42,144.89,144.79,7.42]
[1723989977717,3.4515,144.83,144.79,10.8723]
[1723989977919,8.1115,144.83,144.79,10.8723]
[1723989978111,3.4515,144.83,144.79,10.8723]
[1723989978312,4.66,144.82,144.79,10.8723]
[1723989978517,4.71069508,144.82,144.8,0.04770272]
[1723989981413,0.05069508,144.82,144.8,0.04770272]
[1723989981618,0.05069508,144.82,144.8,3.49980272]
[1723989982718,0.05069508,144.82,144.81,10.8719]
[1723989982915,1.3262,144.91,144.81,10.8719]
[1723989982916,4.66,144.94,144.82,37.1]
[1723989983120,4.66,144.94,144.89,7.42]
[1723989983617,3.4495,144.92,144.89,7.42]
[1723989983821,0.04721737,144.92,144.87,3.4504]
[1723989984016,0.04721737,144.92,144.89,0.05225508]
[1723989984423,3.4497,144.91,144.89,0.05225508]
[1723989985521,7.46721737,144.92,144.89,0.05225508]
[1723989985819,7.42,144.95,144.88,7.42]
[1723989986032,3.4489,144.94,144.9,3.4496]
[1723989986520,3.4491,144.93,144.89,3.4499]
[1723989986721,3.4491,144.93,144.9,0.04508817]
[1723989986722,0.05093404,144.92,144.9,0.04508817]
[1723989987314,0.05093404,144.92,144.9,18.59508817]
[1723989989125,4.66,144.96,144.91,18.55]
[1723989989314,4.66,144.97,144.91,18.55]
[1723989989723,1.2575,145.01,144.93,18.55]
[1723989989929,18.55,145.05,144.95,18.55]
[1723989990125,3.49357261,145.01,144.98,0.05106604]
[1723989991528,0.04617261,145.01,144.98,0.05106604]
[1723989991822,0.04617261,145.01,144.99,18.55]
[1723989992215,0.04617261,145.01,145.0,3.4474]
[1723989992724,0.04617261,145.01,144.99,18.55]
[1723989993831,0.04617261,145.01,144.99,21.9976]
[1723989996226,0.04617261,145.01,144.99,18.55]
[1723990000637,3.49337261,145.01,144.99,18.55]
[1723990000934,0.04617261,145.01,144.98,0.05106604]
[1723990001233,3.4476,145.0,144.98,0.05106604]
[1723990001529,0.04617261,145.01,144.98,0.05106604]
[1723990003429,3.4474,145.0,144.98,0.05106604]
[1723990003939,0.04617261,145.01,144.98,0.05106604]
[1723990004339,3.4476,145.0,144.98,0.05106604]
[1723990004826,3.4476,144.99,144.98,0.05106604]
[1723990005028,0.04617261,145.01,144.98,0.05106604]
[1723990006138,3.49337261,145.01,144.98,0.05106604]
[1723990006340,0.04617261,145.01,144.99,18.55]
[1723990009041,3.49337261,145.01,144.98,3.49876604]
[1723990009235,0.04617261,145.01,144.98,3.49876604]
[1723990009844,3.49337261,145.01,144.98,0.05106604]
[1723990010041,0.04617261,145.01,144.98,0.05106604]
[1723990010433,3.4474,145.0,144.98,0.05106604]
[1723990010743,0.04617261,145.01,144.98,0.05106604]
[1723990011145,3.4476,144.99,144.98,0.05106604]
[1723990012944,3.4488,144.94,144.88,22.07004129]
[1723990013136,18.55,144.97,144.89,1.26692218]
[1723990013444,3.449,144.94,144.89,8.23134941]
[1723990013649,3.449,144.94,144.9,1.26692218]
[1723990013843,8.109,144.94,144.89,3.4499]
[1723990014144,0.04589007,144.93,144.91,0.04559492]
[1723990018141,3.49499007,144.93,144.91,0.04559492]
[1723990019347,3.4493,144.92,144.91,0.04559492]
[1723990020347,3.49499007,144.93,144.91,0.04559492]
[1723990020550,8.15499007,144.93,144.91,0.04559492]
[1723990021839,4.70589007,144.93,144.91,0.04559492]
[1723990023451,8.15509007,144.93,144.91,0.04559492]
[1723990024851,4.70589007,144.93,144.91,0.04559492]
[1723990025157,0.04589007,144.93,144.91,0.04559492]
[1723990025547,7.20530459,145.12,144.91,18.59559492]
[1723990025548,4.66,144.96,144.91,18.59559492]
[1723990025754,4.66,144.96,144.91,18.55]
[1723990026749,0.04492577,144.95,144.92,3.50039883]
[1723990028347,0.04492577,144.95,144.93,3.449]
[1723990028551,0.04492577,144.95,144.93,18.55]
[1723990029155,0.04492577,144.95,144.93,21.999]
[1723990029359,0.04492577,144.95,144.93,18.55]
[1723990029761,0.04492577,144.95,144.93,21.9989]
[1723990030254,4.66,145.01,144.95,3.4484]
[1723990030456,4.66,145.01,144.96,18.55]
[1723990030853,3.447,145.02,144.98,18.55]
[1723990031053,4.66,145.04,144.98,18.55]
[1723990031251,0.04997824,145.02,145.0,0.04569951]
[1723990031764,0.04997824,145.02,145.0,18.59569951]
[1723990032260,0.04997824,145.02,145.0,0.04569951]
[1723990034866,3.49687824,145.02,145.0,0.04569951]
[1723990038457,3.4472,145.01,145.0,0.04569951]
[1723990040361,0.04997824,145.02,145.0,0.04569951]
[1723990042463,3.49707824,145.02,145.0,0.04569951]
[1723990059380,3.4472,145.01,145.0,0.04569951]
[1723990059576,0.04997824,145.02,145.0,7.45569951]
[1723990059781,3.49697824,145.02,145.01,7.41]
[1723990061880,8.0862,145.05,145.01,10.8572]
[1723990062082,8.0862,145.05,145.04,7.41]
[1723990062480,3.44777611,145.08,145.04,7.41]
[1723990062783,4.64,145.09,145.06,7.41]
[1723990062987,3.4457,145.07,145.06,7.41]
[1723990063282,3.4457,145.07,145.06,7.45894375]
[1723990064390,3.4457,145.07,145.06,0.04894375]
[1723990076094,28.11,145.08,144.94,4.64]
[1723990076301,7.41,145.02,144.95,8.67633518]
[1723990076603,7.41,145.02,144.95,10.8584]
[1723990076604,4.64,145.01,144.95,10.8584]
[1723990076807,12.05,145.01,144.95,7.41]
[1723990077304,12.05,145.01,144.94,1.3214]
[1723990077305,0.04748367,144.99,144.97,0.0526476]
[1723990077495,7.45748367,144.99,144.93,9.9049]
[1723990077700,3.4483,144.97,144.93,13.3538]
[1723990078600,3.4483,144.97,144.94,0.05135094]
[1723990083708,3.4479,144.98,144.95,7.41]
[1723990083901,3.4479,144.98,144.96,7.41]
[1723990084098,0.04748367,144.99,144.96,7.41]
[1723990084299,0.04748367,144.99,144.97,7.41]
[1723990085012,0.04748367,144.99,144.98,3.4479]
[1723990085308,4.64,145.03,144.98,3.4479]
[1723990085508,3.4471,145.02,145.01,7.41]
[1723990085705,3.4471,145.02,145.0,7.41]
[1723990086608,3.49750041,145.02,145.0,7.45944831]
[1723990089007,0.05040041,145.02,145.0,7.45944831]
[1723990091807,3.49730041,145.02,145.0,7.45944831]
[1723990093213,3.4472,145.01,145.0,7.45944831]
[1723990098120,0.05040041,145.02,145.0,7.45944831]
[1723990098317,0.05040041,145.02,145.01,7.41]
[1723990102125,0.05040041,145.02,145.0,0.04944831]
[1723990103825,3.4472,145.01,145.0,0.04944831]
[1723990104028,0.05040041,145.02,145.0,0.04944831]
[1723990104319,0.05040041,145.02,145.01,7.41]
[1723990105224,3.49730041,145.02,145.01,7.41]
[1723990105423,0.05040041,145.02,145.01,7.41]
[1723990105928,3.49730041,145.02,145.01,7.41]
[1723990107024,0.05040041,145.02,145.01,7.41]
[1723990107728,8.0863,145.05,145.01,10.8572]
[1723990107920,4.64,145.05,145.04,7.41]
[1723990108227,3.4461,145.06,145.04,7.41]
[1723990108931,3.49647006,145.06,145.04,7.45716238]
[1723990109234,3.4462,145.05,145.04,0.04716238]
[1723990112531,3.49647006,145.06,145.04,0.04716238]
[1723990113827,3.49647006,145.06,145.04,7.45716238]
[1723990115036,3.4462,145.05,145.04,0.04716238]
[1723990118234,3.49647006,145.06,145.04,0.04716238]
[1723990123741,3.4462,145.05,145.04,0.04716238]
[1723990126244,3.4462,145.05,145.04,7.45716238]
[1723990126942,3.4462,145.05,145.04,0.04716238]
[1723990127756,20.74037006,145.06,144.94,3.37358247]
[1723990127940,7.41,145.01,144.94,7.41]
[1723990128240,7.41,145.0,144.94,7.41]
[1723990128445,3.4483,144.97,144.94,7.41]
[1723990128842,0.0527041,144.97,144.95,7.41]
[1723990129050,1.3266,145.04,144.95,7.41]
[1723990129241,4.64,145.01,144.97,7.41]
[1723990129548,3.4476,144.99,144.97,7.41]
[1723990130139,3.49963932,144.99,144.97,7.45431201]
[1723990133047,3.4479,144.98,144.97,0.04431201]
[1723990133249,0.05203932,144.99,144.93,7.41]
[1723990133654,3.4484,144.96,144.93,7.41]
[1723990134546,3.49238558,144.96,144.93,7.45590299]
[1723990135250,0.04398558,144.96,144.95,7.41]
[1723990135957,3.49228558,144.96,144.95,7.41]
[1723990137454,0.04398558,144.96,144.95,7.41]
[1723990139351,0.04398558,144.96,144.93,3.49500299]
[1723990139559,0.04398558,144.96,144.95,7.41]
[1723990139750,3.49238558,144.96,144.94,7.41]
[1723990140961,3.4486,144.95,144.94,7.41]
[1723990141955,0.04398558,144.96,144.93,0.04590299]
[1723990141956,3.4488,144.94,144.93,0.04590299]
[1723990142349,3.4499,144.9,144.88,7.41]
[1723990143557,3.49551641,144.9,144.88,7.45957129]
[1723990147359,0.04561641,144.9,144.89,7.41]
[1723990149355,4.64,144.94,144.89,7.41]
[1723990149553,4.64,144.94,144.91,7.41]
[1723990149754,3.4491,144.93,144.91,7.41]
[1723990150360,3.49811118,144.93,144.91,7.45734979]
[1723990150556,0.04901118,144.93,144.91,7.45734979]
[1723990151155,3.49811118,144.93,144.91,7.45734979]
[1723990151464,0.04901118,144.93,144.91,7.45734979]
[1723990152160,0.04901118,144.93,144.91,10.90684979]
[1723990152459,0.04901118,144.93,144.91,7.45734979]
[1723990152963,0.04901118,144.93,144.92,3.4493]
[1723990155468,4.64,144.98,144.93,3.4488]
[1723990155772,4.64,144.99,144.95,7.41]
[1723990156164,4.64,144.99,144.94,7.41]
[1723990156367,0.05205813,144.98,144.95,0.04717754]
[1723990156764,3.4483,144.96,144.95,0.04717754]
[1723990159771,3.4482,144.97,144.95,7.45717754]
[1723990172280,3.4482,144.97,144.95,0.04717754]
[1723990172576,3.4482,144.97,144.95,7.45717754]
[1723990173479,3.4483,144.96,144.95,0.04717754]
[1723990177083,0.05205813,144.98,144.95,0.04717754]
[1723990177084,0.05205813,144.98,144.95,7.45717754]
[1723990177282,8.03576184,145.06,145.0,7.41]
[1723990177491,4.64,145.06,145.0,7.41]
[1723990177787,3.4467,145.03,145.0,7.41]
[1723990178289,3.49412828,145.03,145.0,7.45763238]
[1723990184092,0.04742828,145.03,145.0,7.45763238]
[1723990184392,0.04742828,145.03,145.02,7.41]
[1723990186594,0.04742828,145.03,145.01,3.447]
[1723990186796,0.04742828,145.03,145.0,3.49493238]
[1723990186990,0.04742828,145.03,145.01,7.41]
[1723990187395,0.04742828,145.03,145.02,7.41]
[1723990188594,0.04742828,145.03,145.02,10.8569]
[1723990195000,0.04742828,145.03,145.01,7.41]
[1723990195193,0.04742828,145.03,145.02,7.41]
[1723990196800,0.04742828,145.03,145.02,10.8569]
[1723990200413,4.64,145.06,145.03,3.4467]
[1723990200612,4.64,145.06,145.05,7.41]
[1723990202408,4.5212475,145.06,145.05,10.8562]
[1723990202609,0.03592488,145.07,145.05,7.41]
[1723990203815,0.03592488,145.07,145.06,3.446]
[1723990204208,0.03592488,145.07,145.05,7.41]
[1723990204913,0.03592488,145.07,145.05,10.8561]
[1723990206212,0.03592488,145.07,145.06,3.446]
[1723990207712,0.03592488,145.07,145.04,0.05128462]
[1723990208817,0.03592488,145.07,145.05,7.41]
[1723990209420,0.03592488,145.07,145.06,7.41]
[1723990210217,0.03592488,145.07,145.06,10.856]
[1723990211522,0.03592488,145.07,145.04,0.05128462]
[1723990212031,3.4461,145.06,145.04,0.05128462]
[1723990213424,3.4462,145.05,145.04,0.05128462]
[1723990214421,0.03592488,145.07,145.04,0.05128462]
[1723990215422,3.4461,145.06,145.04,0.05128462]
[1723990215725,7.44592488,145.07,145.04,0.05128462]
[1723990215920,7.44592488,145.07,144.93,9.58168646]
[1723990215921,12.03,145.06,144.99,7.41]
[1723990216125,12.03,145.06,144.95,5.22489541]
[1723990216126,7.41,145.04,144.98,7.41]
[1723990216330,3.4468,145.03,144.99,7.41]
[1723990216820,3.4468,145.03,144.98,3.4478]
[1723990217128,3.49301093,145.02,145.0,0.05030227]
[1723990217920,3.4472,145.01,145.0,0.05030227]
[1723990218826,3.49301093,145.02,145.0,0.05030227]
[1723990221022,0.04601093,145.02,145.0,0.05030227]
[1723990225232,4.62,145.01,144.95,11.3688]
[1723990225535,3.4478,144.99,144.95,14.8173]
[1723990226227,0.05031554,144.98,144.96,3.49587954]
[1723990227132,0.05031554,144.98,144.97,7.41]
[1723990227332,0.05031554,144.98,144.97,10.8581]
[1723990227532,1.327e-05,144.98,144.97,10.8581]
[1723990227729,4.62,145.01,144.97,7.41]
[1723990227929,4.62,145.01,145.0,7.41]
[1723990228128,3.4471,145.02,145.0,7.41]
[1723990229233,3.4468,145.03,145.0,7.41]
[1723990229434,0.04525696,145.02,145.0,7.4593741]
[1723990229727,0.04525696,145.02,145.01,7.41]
[1723990232336,0.04525696,145.02,145.0,7.4593741]
[1723990233432,0.04525696,145.02,145.0,10.9067741]
[1723990234233,3.49225696,145.02,145.0,0.0493741]
[1723990234938,0.04525696,145.02,145.0,7.4593741]
[1723990236542,0.04525696,145.02,145.0,10.9067741]
[1723990238742,0.04525696,145.02,145.0,7.4593741]
[1723990239243,0.04525696,145.02,145.0,10.9067741]
[1723990243542,0.04525696,145.02,145.0,7.4593741]
[1723990244852,0.04525696,145.02,145.0,0.0493741]
[1723990248647,3.49225696,145.02,145.0,0.0493741]
[1723990250146,0.04525696,145.02,145.0,0.0493741]
[1723990250346,0.04525696,145.02,145.01,7.41]
[1723990252854,0.04525696,145.02,145.01,10.8572]
[1723990253148,4.62,145.05,145.01,7.41]
[1723990253358,4.62,145.07,145.04,3.4464]
[1723990253650,3.4456,145.08,145.06,7.41]
[1723990254246,4.62,145.09,145.06,7.41]
[1723990254449,0.04193927,145.08,145.06,7.45953576]
[1723990255850,3.48743927,145.08,145.06,7.45953576]
[1723990256054,0.04193927,145.08,145.06,10.90553576]
[1723990256354,0.04193927,145.08,145.06,7.45953576]
[1723990256555,0.04193927,145.08,145.07,7.41]
[1723990258650,3.48743927,145.08,145.07,7.41]
[1723990258851,0.04193927,145.08,145.06,0.04953576]
[1723990259154,0.04193927,145.08,145.06,3.49553576]
[1723990260854,0.04193927,145.08,145.07,7.41]
[1723990263261,0.04193927,145.08,145.07,10.8557]
[1723990263657,8.01641184,145.14,145.07,7.41]
[1723990263860,8.01641184,145.14,145.1,7.41]
[1723990264157,3.4445,145.13,145.1,7.41]
[1723990264574,8.0642,145.14,145.12,7.41]
[1723990264953,4.62,145.14,145.13,7.41]
[1723990267266,3.4439,145.15,145.13,7.41]
[1723990267457,3.4437,145.16,145.13,10.8543]
[1723990267664,1.2867,145.2,145.15,7.41]
[1723990267860,5.9067,145.2,145.15,7.41]
[1723990268162,5.9067,145.2,145.16,0.04363713]
[1723990268762,4.62,145.2,145.16,7.45363713]
[1723990269266,3.4431,145.18,145.16,7.45363713]
[1723990270166,4.62,145.2,145.17,7.41]
[1723990270369,4.62,145.24,145.19,7.41]
[1723990270763,3.4423,145.22,145.2,0.04431215]
[1723990271063,4.62,145.24,145.2,0.04431215]
[1723990271259,3.4424,145.21,145.2,0.04431215]
[1723990271659,3.4423,145.22,145.2,0.04431215]
[1723990272073,4.62,145.24,145.2,0.04431215]
[1723990272868,3.4424,145.21,145.2,0.04431215]
[1723990284383,3.4424,145.21,145.15,2.5447]
[1723990284384,7.41,145.22,145.06,6.8917]
[1723990284687,7.41,145.2,145.13,7.41]
[1723990284878,10.86496846,145.2,145.13,10.8543]
[1723990285079,3.4436,145.16,145.13,10.8543]
[1723990285382,3.48791215,145.16,145.13,10.8543]
[1723990285581,3.48791215,145.16,145.13,10.90490822]
[1723990285785,0.04431215,145.16,145.15,10.8538]
[1723990286089,4.62,145.24,145.15,7.41]
[1723990286280,3.4428,145.2,145.19,7.41]
[1723990287799,3.4425,145.21,145.19,7.41]
[1723990288498,4.62,145.24,145.2,7.41]
[1723990288798,4.62,145.24,145.22,7.41]
[1723990288991,4.6,145.27,145.22,7.41]
[1723990289188,3.4419,145.24,145.22,7.4627471]
[1723990289396,4.6,145.27,145.22,7.4627471]
[1723990290306,3.4419,145.23,145.22,7.4627471]
[1723990290800,3.4419,145.23,145.22,0.0527471]
[1723990295304,3.4419,145.23,145.22,7.4627471]
[1723990301103,3.4419,145.24,145.22,7.4627471]
[1723990305806,3.4419,145.24,145.23,7.41]
[1723990308111,3.4419,145.23,145.22,7.4627471]
[1723990311400,3.4419,145.24,145.22,7.4627471]
[1723990311604,3.4419,145.24,145.23,7.41]
[1723990323615,3.4419,145.24,145.22,0.0527471]
[1723990323922,3.4419,145.24,145.22,7.4627471]
[1723990325526,3.4419,145.23,145.22,7.4627471]
[1723990331821,3.4415,145.25,145.22,7.4627471]
[1723990333625,3.4415,145.25,145.22,10.9048471]
[1723990335723,7.41,145.26,145.07,38.32674586]
[1723990335923,7.41,145.24,145.13,5.19484468]
[1723990336125,7.41,145.24,145.14,1.26464468]
[1723990336321,7.41,145.24,145.18,7.41]
[1723990336322,3.4426,145.21,145.18,7.41]
[1723990336631,4.6,145.21,145.13,7.348216]
[1723990336927,0.04934986,145.18,145.17,3.4432]
[1723990337227,0.04934986,145.18,145.16,0.04910606]
[1723990337522,3.4434,145.17,145.16,0.04910606]
[1723990338026,3.49254986,145.18,145.16,0.04910606]
[1723990338222,0.04934986,145.18,145.17,7.41]
[1723990338925,0.04934986,145.18,145.16,7.45910606]
[1723990340127,3.49264986,145.18,145.16,7.45910606]
[1723990343435,0.04934986,145.18,145.16,10.90250606]
[1723990344334,0.04934986,145.18,145.16,0.04910606]
[1723990344335,3.49264986,145.18,145.16,0.04910606]
[1723990345033,3.4434,145.17,145.16,0.04910606]
[1723990346736,3.49254986,145.18,145.16,0.04910606]
[1723990347833,3.4434,145.17,145.16,0.04910606]
[1723990354448,0.04934986,145.18,145.16,0.04910606]
[1723990354642,0.04934986,145.18,145.17,7.41]
[1723990354841,0.04934986,145.18,145.17,10.8534]
[1723990362059,3.4423,145.22,145.19,3.4428]
[1723990362356,3.4423,145.22,145.21,7.41]
[1723990362755,4.6,145.23,145.18,3.4431]
[1723990362756,3.4425,145.21,145.18,3.4431]
[1723990363057,3.4425,145.21,145.2,7.41]
[1723990364057,4.6,145.23,145.2,7.41]
[1723990364559,3.4425,145.21,145.2,7.41]
[1723990365460,3.4423,145.22,145.2,7.41]
[1723990365663,3.4423,145.22,145.21,7.41]
[1723990366148,8.0421,145.23,145.21,7.41]
[1723990366549,4.6,145.23,145.21,7.41]
[1723990366747,3.4422,145.22,145.21,7.41]
[1723990368664,3.4422,145.22,145.19,3.4427]
[1723990368960,4.6,145.23,145.18,7.45826391]
[1723990369367,3.4426,145.21,145.18,7.45826391]
[1723990369954,3.4426,145.21,145.19,7.41]
[1723990370658,56.36890355,145.35,145.2,29.64]
[1723990370863,8.7365,145.33,145.27,7.41]
[1723990371059,3.4407,145.29,145.27,7.41]
[1723990371460,3.4407,145.29,145.27,7.45782124]
[1723990372967,3.4408,145.28,145.27,7.45782124]
[1723990374058,3.4408,145.28,145.27,0.04782124]
[1723990379272,3.4415,145.25,145.24,7.41]
[1723990380268,3.49129362,145.26,145.24,7.41]
[1723990382571,0.04999362,145.26,145.23,0.0472261]
[1723990383071,0.04999362,145.26,145.18,4.7657]
[1723990383272,7.45999362,145.26,145.2,7.41]
[1723990383972,3.4423,145.22,145.2,7.41]
[1723990384175,4.58,145.22,145.21,7.41]
[1723990384369,4.62989022,145.22,145.21,7.41]
[1723990386474,8.07209022,145.22,145.21,7.41]
[1723990393283,4.62989022,145.22,145.21,7.41]
[1723990396680,0.04989022,145.22,145.21,7.41]
[1723990398979,0.04989022,145.22,145.2,3.49254051]
[1723990399178,0.04989022,145.22,145.21,7.41]
[1723990399584,0.04989022,145.22,145.21,10.8524]
[1723990401988,0.04989022,145.22,145.21,7.41]
[1723990409593,0.04989022,145.22,145.2,3.49254051]
[1723990409786,0.04989022,145.22,145.21,7.41]
[1723990413391,0.04989022,145.22,145.21,10.8524]
[1723990416693,0.04989022,145.22,145.2,0.04994051]
[1723990417992,3.4424,145.21,145.2,0.04994051]
[1723990421098,0.04989022,145.22,145.16,7.41]
[1723990421900,0.04989022,145.22,145.18,0.05086029]
[1723990422109,3.4431,145.19,145.18,0.05086029]
[1723990433409,3.4431,145.19,145.18,7.46086029]
[1723990439007,3.4431,145.19,145.18,0.05086029]
[1723990439210,3.444,145.15,145.13,1.2358]
[1723990439409,3.444,145.15,145.14,7.41]
[1723990440217,4.58,145.17,145.13,0.04986042]
[1723990440513,0.04913356,145.16,145.13,0.04986042]
[1723990440816,3.4438,145.15,145.13,0.04986042]
[1723990441003,3.4438,145.15,145.14,7.41]
[1723990441309,8.0238,145.15,145.14,7.41]
[1723990441712,3.4438,145.15,145.14,7.41]
[1723990442414,4.62913356,145.16,145.14,7.41]
[1723990442613,0.04913356,145.16,145.15,7.41]
[1723990446117,0.04913356,145.16,145.15,10.8538]
[1723990451915,3.49273356,145.16,145.15,7.41]
[1723990452111,0.04913356,145.16,145.13,0.04986042]
[1723990452915,3.444,145.15,145.13,0.04986042]
[1723990455721,3.4441,145.14,145.13,0.04986042]
[1723990458719,0.04913356,145.16,145.09,7.41]
[1723990458720,7.41,145.15,145.09,7.41]
[1723990459121,4.58,145.17,145.08,1.265]
[1723990459122,28.07,145.16,145.08,1.265]
[1723990459319,7.41,145.15,145.07,7.41]
[1723990459718,0.05163607,145.12,145.1,0.04354026]
[1723990459920,4.58,145.11,145.1,0.04354026]
[1723990460518,8.0248,145.11,145.1,0.04354026]
[1723990460721,4.58,145.11,145.05,7.41]
[1723990461223,7.95860298,145.11,145.05,7.41]
[1723990461825,7.95860298,145.11,145.07,0.04341186]
[1723990461826,3.4457,145.08,145.07,0.04341186]
[1723990463628,0.05237883,145.09,145.07,0.04341186]
[1723990463932,0.05237883,145.09,145.08,7.41]
[1723990464128,3.49767883,145.09,145.08,7.41]
[1723990464819,8.07767883,145.09,145.08,7.41]
[1723990467033,3.49767883,145.09,145.08,7.41]
[1723990468325,3.49767883,145.09,145.07,0.04341186]
[1723990468523,3.49767883,145.09,145.07,7.45341186]
[1723990469737,0.05237883,145.09,145.07,7.45341186]
[1723990472536,0.05237883,145.09,145.07,0.04341186]
[1723990473130,7.46237883,145.09,145.02,1.2363]
[1723990473329,7.46237883,145.09,145.03,7.41]
[1723990473731,3.446,145.07,145.03,10.8567]
[1723990474135,3.446,145.07,145.04,0.04405307]
[1723990474538,3.4456,145.08,145.04,7.45405307]
[1723990474940,3.4456,145.08,145.04,10.90035307]